fUST/lending_fUST_20240116
["ID","MTS","AMOUNT","RATE_DAILY","PERIOD"]
[311718191,1705351842761,-1016.52,0.0003041,2]
[311718192,1705351842772,-500.0,0.0003041,2]
[311718193,1705351842782,-500.0,0.0003041,2]
[311718194,1705351842793,-500.0,0.0003041,2]
[311718195,1705351842803,-500.0,0.0003041,2]
[311718196,1705351842813,-501.6604041,0.0003041,2]
[311718197,1705351842828,-500.0,0.0003041,2]
[311718198,1705351842838,-500.0,0.0003041,2]
[311718200,1705351842848,-500.0,0.0003041,2]
[311718202,1705351842860,-788.58,0.0003041,2]
[311718204,1705351842870,-500.0,0.0003041,2]
[311718205,1705351842879,-659.3,0.0003041,2]
[311718206,1705351842889,-500.0,0.0003041,2]
[311718207,1705351842898,-500.0,0.0003041,2]
[311718208,1705351842907,-221.65303753,0.0003041,2]
[311718209,1705351842917,-500.0,0.0003041,2]
[311718210,1705351842927,-500.0,0.0003041,2]
[311718211,1705351842936,-500.0,0.0003041,2]
[311718212,1705351842946,-304.64569029,0.0003041,2]
[311718213,1705351842956,-500.0,0.0003041,2]
[311718214,1705351842966,-252.5833351,0.0003041,2]
[311718215,1705351842975,-500.0,0.0003041,2]
[311718216,1705351842984,-500.0,0.0003041,2]
[311718217,1705351842994,-297.68122373,0.0003041,2]
[311718218,1705351843003,-500.0,0.0003041,2]
[311718219,1705351843012,-500.0,0.0003041,2]
[311718220,1705351843021,-795.25,0.0003041,2]
[311718221,1705351843030,-500.0,0.0003041,2]
[311718222,1705351843039,-173.39777827,0.0003041,2]
[311718223,1705351843048,-500.0,0.0003041,2]
[311718224,1705351843057,-500.0,0.0003041,2]
[311718226,1705351843066,-507.60003843,0.0003041,2]
[311718228,1705351843080,-510.24468115,0.0003041,2]
[311718230,1705351843089,-500.0,0.0003041,2]
[311718231,1705351843098,-1103.22,0.0003041,2]
[311718232,1705351843107,-510.80992751,0.0003041,2]
[311718233,1705351843116,-1172.47,0.0003041,2]
[311718235,1705351843126,-2291.98,0.0003041,2]
[311718236,1705351843135,-500.0,0.0003041,2]
[311718237,1705351843145,-500.0,0.0003041,2]
[311718238,1705351843154,-2382.44,0.0003041,2]
[311718239,1705351843163,-500.0,0.0003041,2]
[311718240,1705351843172,-1026.14,0.0003041,2]
[311718242,1705351843181,-500.0,0.0003041,2]
[311718244,1705351843190,-500.0,0.0003041,2]
[311718245,1705351843198,-600.75,0.0003041,2]
[311718247,1705351843207,-500.0,0.0003041,2]
[311718249,1705351843216,-500.0,0.0003041,2]
[311718251,1705351843225,-500.0,0.0003041,2]
[311718253,1705351843234,-500.0,0.0003041,2]
[311718254,1705351843242,-500.0,0.0003041,2]
[311718256,1705351843251,-500.0,0.0003041,2]
[311718258,1705351843260,-500.0,0.0003041,2]
[311718260,1705351843269,-475.22799261,0.0003041,2]
[311718262,1705351843278,-500.0,0.0003041,2]
[311718264,1705351843286,-500.0,0.0003041,2]
[311718266,1705351843295,-4534.31,0.0003041,2]
[311718268,1705351843304,-3020.64,0.0003041,2]
[311718270,1705351843312,-500.0,0.0003041,2]
[311718272,1705351843324,-12031.8,0.0003041,2]
[311718274,1705351843333,-571.18,0.0003041,2]
[311718276,1705351843341,-610.8,0.0003041,2]
[311718278,1705351843350,-528.16,0.0003041,2]
[311718280,1705351843358,-500.0,0.0003041,2]
[311718282,1705351843367,-500.0,0.0003041,2]
[311718284,1705351843376,-1397.71,0.0003041,2]
[311718286,1705351843384,-19314.89,0.0003041,2]
[311718288,1705351843392,-640.58,0.0003041,2]
[311718290,1705351843401,-1606.49,0.0003041,2]
[311718293,1705351843410,-500.0,0.0003041,2]
[311718295,1705351843418,-500.0,0.0003041,2]
[311718297,1705351843427,-500.0,0.0003041,2]
[311718299,1705351843436,-500.0,0.0003041,5]
[311718301,1705351843445,-500.0,0.0003041,2]
[311718302,1705351843455,-1214.33,0.0003041,2]
[311718303,1705351843464,-242.89215293,0.0003041,2]
[311718304,1705351843474,-517.61704025,0.0003041,2]
[311718305,1705351843483,-500.0,0.0003041,2]
[311718306,1705351843493,-674.82,0.0003041,2]
[311718307,1705351843502,-500.0,0.0003041,2]
[311718308,1705351843511,-500.0,0.0003041,2]
[311718309,1705351843520,-500.0,0.0003041,2]
[311718310,1705351843528,-624.39,0.0003041,2]
[311718311,1705351843537,-556.45,0.0003041,2]
[311718312,1705351843547,-500.0,0.0003041,2]
[311718313,1705351843555,-848.07,0.0003041,2]
[311718314,1705351843564,-4118.94,0.0003041,2]
[311718315,1705351843575,-500.0,0.0003041,2]
[311718316,1705351843583,-611.15,0.0003041,2]
[311718317,1705351843592,-512.24310383,0.0003041,2]
[311718318,1705351843601,-2246.28,0.0003041,2]
[311718319,1705351843611,-3070.13,0.0003041,2]
[311718320,1705351843682,-997.51,0.0003041,2]
[311718321,1705351843691,-500.0,0.0003041,2]
[311718322,1705351843700,-500.0,0.0003041,2]
[311718323,1705351843709,-500.0,0.0003041,2]
[311718324,1705351843717,-500.0,0.0003041,2]
[311718325,1705351843726,-893.67,0.0003041,2]
[311718326,1705351843735,-500.0,0.0003041,2]
[311718327,1705351843744,-500.0,0.0003041,2]
[311718328,1705351843753,-5163.63,0.0003041,2]
[311718329,1705351843762,-1964.003641,0.0003041,2]
[311718330,1705351843771,-1964.003641,0.0003041,2]
[311718331,1705351843780,-151.0,0.0003041,2]
[311718332,1705351843789,-154.019126,0.0003041,2]
[311718333,1705351843798,-5000.0,0.00030416,7]
[311718334,1705351843806,-5000.0,0.00030416,7]
[311718335,1705351843815,-155.0,0.00030506,2]
[311718336,1705351843826,-3889.942959,0.000306,2]
[311718337,1705351843835,-1500.0,0.000306,2]
[311718338,1705351843845,-150.5,0.0003066,30]
[311718339,1705351843854,-150.5,0.0003067,30]
[311718340,1705351843864,-4799.0,0.0003067,30]
[311718341,1705351843873,-150.5,0.0003068,30]
[311718342,1705351843882,-4799.0,0.0003068,30]
[311718343,1705351843891,-3899.2595519,0.00030682,4]
[311718344,1705351843900,-154.9690062,0.00030682,2]
[311718345,1705351843909,-777.94846319,0.00030683,2]
[311718346,1705351843918,-500.0,0.00030683,2]
[311718347,1705351843927,-263.23548355,0.00030683,2]
[311718348,1705351843936,-421.88,0.00030683,2]
[311718349,1705351843946,-500.0,0.00030684,2]
[311718350,1705351843955,-500.0,0.00030684,2]
[311718351,1705351843964,-500.0,0.00030684,2]
[311718352,1705351843973,-500.0,0.00030684,2]
[311718353,1705351843982,-500.0,0.00030684,2]
[311718354,1705351843991,-500.0,0.00030684,2]
[311718355,1705351844003,-500.0,0.00030684,2]
[311718356,1705351844012,-575.45,0.00030684,2]
[311718357,1705351844021,-500.0,0.00030684,2]
[311718358,1705351844031,-500.0,0.00030684,2]
[311718359,1705351844040,-500.0,0.00030684,2]
[311718360,1705351844049,-571.08,0.00030684,2]
[311718361,1705351844058,-500.0,0.00030684,2]
[311718362,1705351844067,-500.0,0.00030684,2]
[311718363,1705351844079,-503.84730976,0.00030684,2]
[311718364,1705351844088,-500.0,0.00030684,2]
[311718365,1705351844098,-500.0,0.00030684,2]
[311718366,1705351844107,-500.0,0.00030684,2]
[311718367,1705351844116,-500.0,0.00030684,2]
[311718368,1705351844126,-1710.12,0.00030684,2]
[311718369,1705351844134,-500.0,0.00030684,2]
[311718370,1705351844144,-500.0,0.00030684,2]
[311718371,1705351844153,-500.0,0.00030684,2]
[311718372,1705351844162,-445.73672365,0.00030684,2]
[311718579,1705353038634,-154.9690062,0.00027614,4]
[311718581,1705353038643,-105.32528377,0.00027974,2]
[311718582,1705353038655,-24794.67471623,0.00027974,2]
[311718583,1705353038664,-1609.96,0.00028202,3]
[311718584,1705353038673,-1341.63,0.00028202,3]
[311718585,1705353038682,-50000.0,0.00028212,5]
[311718586,1705353038692,-188.84580928,0.0002831,2]
[311718587,1705353038701,-167.925873,0.00028554,2]
[311718588,1705353038710,-2454.18896115,0.00029,2]
[311718589,1705353038719,-155.0,0.0002941,2]
[311718590,1705353038728,-5000.0,0.00029432,5]
[311718591,1705353038737,-48295.94269072,0.00029432,4]
[311718592,1705353038746,-5000.0,0.00029432,5]
[311718593,1705353038755,-729.85620172,0.00029432,3]
[311718595,1705353038765,-5000.0,0.00029461,5]
[311718596,1705353038773,-5000.0,0.00029564,5]
[311718597,1705353038783,-5000.0,0.00029564,5]
[311718599,1705353038792,-5000.0,0.00029564,5]
[311718601,1705353038801,-5000.0,0.00029564,5]
[311718603,1705353038810,-5000.0,0.00029564,5]
[311718605,1705353038821,-20202.1926197,0.00029564,3]
[311718607,1705353038830,-5000.0,0.00029564,5]
[311718609,1705353038839,-5000.0,0.00029564,5]
[311718611,1705353038848,-5000.0,0.00029564,5]
[311718613,1705353038857,-9572.83082487,0.00029606,3]
[311718615,1705353038866,-5000.0,0.00029606,5]
[311718617,1705353038875,-5000.0,0.00029606,5]
[311718619,1705353038884,-5000.0,0.0002968,5]
[311718621,1705353038893,-210.94,0.00029689,2]
[311718623,1705353038902,-137935.08317447,0.0002969,2]
[311718625,1705353038911,-50000.0,0.00029726,4]
[311718627,1705353038919,-6883.06055218,0.0002979,7]
[311718629,1705353038928,-155.01395126,0.00029968,2]
[311718630,1705353038937,-164.31941956,0.00029998,2]
[311718632,1705353038946,-466.82403981,0.00029998,2]
[311718634,1705353038955,-242.67449373,0.00029998,2]
[311718636,1705353038965,-174.94849142,0.00029998,2]
[311718638,1705353038974,-849.56233299,0.00029998,2]
[311718640,1705353038983,-615.80248759,0.00029998,2]
[311718643,1705353038993,-264.9672714,0.00029998,2]
[311718645,1705353039002,-1185.90642814,0.00029998,2]
[311718646,1705353039011,-155.37644244,0.00029998,2]
[311718648,1705353039021,-2030.29653603,0.00029998,2]
[311718651,1705353039031,-216.49155598,0.00029998,2]
[311718653,1705353039040,-875.01165605,0.00029998,2]
[311718655,1705353039049,-594.2143433,0.00029998,2]
[311718656,1705353039058,-191.10838986,0.00029998,2]
[311718658,1705353039068,-515.17636802,0.00029998,2]
[311718660,1705353039077,-166.70935578,0.00029998,2]
[311718662,1705353039086,-155.01395126,0.00029998,2]
[311718665,1705353039095,-155.20695697,0.00029998,2]
[311718667,1705353039110,-1694.17346883,0.00029998,2]
[311718670,1705353039123,-19835.34944112,0.00029998,2]
[311718672,1705353039136,-309.79865023,0.00029998,2]
[311718673,1705353039149,-322.94976484,0.00029998,2]
[311718674,1705353039159,-155.01395126,0.00029998,2]
[311718675,1705353039171,-166.39764695,0.00029998,2]
[311718676,1705353039192,-1745.33217549,0.00029998,2]
[311718677,1705353039211,-586.6153228,0.00029998,2]
[311718678,1705353039227,-1240.5015561,0.00029998,2]
[311718680,1705353039242,-360.90387838,0.00029998,2]
[311718683,1705353039260,-343.80031935,0.00029998,2]
[311718685,1705353039273,-319.84377001,0.00029998,2]
[311718687,1705353039285,-525.7882447,0.00029998,2]
[311718690,1705353039298,-5656.01141166,0.00029999,2]
[311718692,1705353039312,-210.94,0.00029999,2]
[311718695,1705353039325,-500.0,0.00029999,2]
[311718697,1705353039337,-385.52979532,0.00029999,2]
[311718699,1705353039350,-373.33611885,0.00029999,2]
[311718702,1705353039363,-500.0,0.00029999,2]
[311718704,1705353039376,-500.0,0.00029999,2]
[311718706,1705353039387,-500.0,0.00029999,2]
[311718708,1705353039397,-500.0,0.00029999,2]
[311718711,1705353039412,-175.53693561,0.00029999,2]
[311718714,1705353039424,-500.0,0.00029999,2]
[311718716,1705353039437,-500.0,0.00029999,2]
[311718718,1705353039451,-500.0,0.00029999,2]
[311718721,1705353039464,-500.0,0.00029999,2]
[311718723,1705353039476,-500.0,0.00029999,2]
[311718725,1705353039491,-500.0,0.00029999,2]
[311718728,1705353039503,-500.0,0.00029999,2]
[311718730,1705353039516,-500.0,0.00029999,2]
[311718732,1705353039530,-500.0,0.00029999,2]
[311718735,1705353039544,-500.0,0.00029999,2]
[311718737,1705353039556,-500.0,0.00029999,2]
[311718740,1705353039570,-500.0,0.00029999,2]
[311718742,1705353039580,-626.80373428,0.00029999,2]
[311718744,1705353039590,-500.0,0.00029999,2]
[311718746,1705353039601,-500.0,0.00029999,2]
[311718748,1705353039612,-500.0,0.00029999,2]
[311718750,1705353039624,-500.0,0.00029999,2]
[311718753,1705353039636,-500.0,0.00029999,2]
[311718755,1705353039648,-500.0,0.00029999,2]
[311718757,1705353039661,-500.0,0.00029999,2]
[311718760,1705353039673,-500.0,0.00029999,2]
[311718762,1705353039683,-500.0,0.00029999,2]
[311718764,1705353039694,-527.61646956,0.00029999,2]
[311718766,1705353039705,-500.0,0.00029999,2]
[311718768,1705353039716,-500.0,0.00029999,2]
[311718771,1705353039728,-500.0,0.00029999,2]
[311718773,1705353039743,-420.51372399,0.00029999,2]
[311718776,1705353039755,-500.0,0.00029999,2]
[311718778,1705353039767,-500.0,0.00029999,2]
[311718780,1705353039779,-500.0,0.00029999,2]
[311718782,1705353039790,-900.59678191,0.0003,2]
[311718785,1705353039802,-166.59677014,0.0003,2]
[311718787,1705353039814,-1413.42859915,0.0003,2]
[311718789,1705353039826,-29665.65090844,0.0003,2]
[311718792,1705353039837,-160733.39049653,0.0003,2]
[311718928,1705353041469,-999.3353907,0.0003,2]
[311718956,1705353043570,-5000.0,0.00029432,5]
[311718958,1705353043580,-500.0,0.00029999,2]
[311718960,1705353043589,-500.0,0.00029999,2]
[311718962,1705353043598,-580.31378686,0.00029999,2]
[311718964,1705353043606,-2927.33472591,0.0003,2]
[311719021,1705353046644,-463.36013766,0.0002999,3]
[311719081,1705354231841,-594.38972109,0.0002542,2]
[311719082,1705354231851,-166.666666,0.00025426,2]
[311719083,1705354231860,-5510.34246419,0.00026267,2]
[311719085,1705354237733,-154.9690062,0.00025419,4]
[311719086,1705354237742,-187.7389938,0.00026267,2]
[311719087,1705354237757,-4593.6229753,0.00026267,2]
[311719088,1705354237846,-1683.2306304,0.00026267,2]
[311719089,1705354237858,-12925.06493631,0.00026267,2]
[311719090,1705354237867,-27132.1551979,0.00026475,2]
[311719091,1705354237876,-250.0,0.00026597,2]
[311719092,1705354237885,-454.8279386,0.00026725,2]
[311719093,1705354237895,-169.91439281,0.00026891,2]
[311719094,1705354237904,-975.44295995,0.00027121,2]
[311719095,1705354237914,-3549.79857409,0.00027121,2]
[311719096,1705354237922,-306.43087312,0.00027121,2]
[311719122,1705354240655,-806.16817907,0.00027121,2]
[311719123,1705354240666,-813.879401,0.00027164,2]
[311719124,1705354240675,-1201.82021587,0.00027164,2]
[311719183,1705354245782,-564.11109467,0.00027164,2]
[311719191,1705354459860,-1467.59803436,0.00022601,2]
[311719192,1705354459881,-154.9690062,0.00024847,2]
[311719193,1705354459901,-425.34837196,0.00024847,2]
[311719194,1705354459921,-875.26749955,0.00024847,2]
[311719195,1705354459941,-402.90810268,0.00024848,2]
[311719196,1705354459963,-560.92808973,0.00024848,2]
[311719197,1705354459983,-154.9690062,0.00024848,2]
[311719198,1705354460005,-861.45126448,0.00024848,2]
[311719199,1705354460026,-191.16884209,0.00024848,2]
[311719200,1705354460048,-166.4504165,0.00024848,2]
[311719201,1705354460068,-521.45877329,0.00024848,2]
[311719202,1705354460088,-1380.29206665,0.00024848,2]
[311719203,1705354460111,-615.97967559,0.00024849,2]
[311719204,1705354460133,-166.76500768,0.00024849,2]
[311719205,1705354460153,-7949.84974405,0.00024849,2]
[311719206,1705354460174,-1222.03199723,0.0002485,2]
[311719207,1705354460195,-154.9690062,0.0002485,4]
[311719208,1705354460217,-175.00244479,0.0002485,2]
[311719209,1705354460237,-242.79443155,0.0002485,2]
[311719210,1705354460257,-1694.70771461,0.0002485,2]
[311719211,1705354460277,-1165.2196415,0.00024851,2]
[311719212,1705354460298,-13703.21181576,0.00025104,2]
[311719213,1705354460318,-20848.89855073,0.00025104,2]
[311719214,1705354460339,-265.11659857,0.00025105,2]
[311719215,1705354460361,-154.9690062,0.00025105,2]
[311719216,1705354460382,-301.52967926,0.00025105,2]
[311719217,1705354460516,-18880.85904478,0.00025105,2]
[311719218,1705354460537,-2031.79600429,0.00025106,2]
[311719219,1705354460558,-154.9690062,0.00025106,2]
[311719220,1705354460578,-154.9690062,0.00025106,2]
[311719221,1705354460602,-1577.23828043,0.00025106,2]
[311719222,1705354460625,-1031.50825959,0.00025106,2]
[311719223,1705354460647,-587.55478974,0.00025107,2]
[311719224,1705354460668,-452.10708087,0.00025107,2]
[311719225,1705354460693,-361.02080012,0.00025107,2]
[311719226,1705354460714,-19675.95998529,0.00025107,2]
[311719227,1705354460734,-500.0,0.00025108,2]
[311719228,1705354460755,-15894.15433298,0.00025108,2]
[311719229,1705354460776,-19842.21540701,0.00025108,2]
[311719230,1705354460798,-14001.79321509,0.00025109,2]
[311719231,1705354494797,166.666666,0.00024193,2]
[311719232,1705354528493,-338.34874163,0.00024375,2]
[311719233,1705354528514,-526.65125837,0.00024845,2]
[311719234,1705354600044,-157.11446676,0.00024193,2]
[311719235,1705354600066,-182.50978617,0.00024193,2]
[311719236,1705354600089,-154.9690062,0.00024193,2]
[311719237,1705354600110,-214.95644143,0.00024193,2]
[311719238,1705354604248,154.9690062,0.00024192,4]
[311719240,1705354655166,154.9690062,0.00024192,2]
[311719241,1705354657275,1605.51228704,0.00024192,2]
[311719242,1705354665530,-323.0,0.00024192,2]
[311719244,1705354730839,-152.98138188,0.00024192,2]
[311719245,1705354730861,-154.9690062,0.00024192,2]
[311719246,1705354730882,-192.04961192,0.00024192,2]
[311719247,1705354794754,-452.10708087,0.0002419,2]
[311719248,1705354794776,-500.0,0.0002419,2]
[311719249,1705354794799,-154.9690062,0.00024191,4]
[311719250,1705354794820,-152.68335552,0.00024192,2]
[311719251,1705354794841,-2117.24025618,0.00024192,2]
[311719252,1705354794862,-271.00771028,0.00024192,2]
[311719253,1705354794882,-1060.99259095,0.00024255,2]
[311719255,1705354864050,-4708.58698345,0.00023466,2]
[311719256,1705354864070,-167.6475739,0.00024049,2]
[311719257,1705354864092,-34536.76544265,0.00024183,2]
[311719258,1705354935220,-10919.0,0.00023526,2]
[311719261,1705354973636,1467.04826523,0.00022086,2]
[311719262,1705354987445,175.0,0.00035616,120]
[311719263,1705354987467,175.0,0.00035616,120]
[311719264,1705355006799,154.9690062,0.00022782,4]
[311719265,1705355019684,-679.24429502,0.00022783,2]
[311719266,1705355019705,-166.666666,0.00022784,2]
[311719267,1705355019726,-8750.56627631,0.0002282,2]
[311719268,1705355019747,-4829.92,0.00023353,3]
[311719269,1705355019768,-178.67391792,0.00023363,2]
[311719270,1705355019788,-154.9690062,0.00023363,2]
[311719271,1705355019808,-14948.95983855,0.00023363,2]
[311719274,1705355089305,154.9690062,0.00022661,4]
[311719275,1705355105302,154.9690062,0.00021025,4]
[311719277,1705355125307,154.9690062,0.00021025,4]
[311719278,1705355147310,154.9690062,0.00021025,4]
[311719280,1705355153626,3834.50418344,0.00021025,2]
[311719281,1705355167319,154.9690062,0.00021025,4]
[311719282,1705355173627,2857.64942533,0.00021025,2]
[311719283,1705355187316,154.9690062,0.00021025,4]
[311719284,1705355203325,154.9690062,0.00021025,4]
[311719285,1705355225325,154.9690062,0.00021025,4]
[311719286,1705355232223,6137.72634836,0.00020394,2]
[311719287,1705355245327,154.9690062,0.00021025,4]
[311719288,1705355267335,154.9690062,0.00021025,4]
[311719290,1705355285355,154.9690062,0.00020284,4]
[311719291,1705355303333,154.9690062,0.00020284,4]
[311719292,1705355324991,496.244654,0.00021878,2]
[311719293,1705355325336,154.9690062,0.00020283,4]
[311719295,1705355345356,154.9690062,0.00020283,4]
[311719297,1705355405708,1466.67664473,0.00016903,2]
[311719298,1705355425713,1466.67664473,0.00016903,2]
[311719342,1705355431841,154.9690062,0.00022525,4]
[311719344,1705355431854,-679.24429502,0.00022526,2]
[311719346,1705355431864,-1379.16949299,0.00022527,2]
[311719348,1705355431874,-4024.94,0.00022529,3]
[311719350,1705355431885,-155.02170319,0.00022538,2]
[311719352,1705355431895,-81113.81175264,0.00022539,2]
[311719354,1705355431904,-265.7994308,0.0002254,2]
[311719356,1705355431913,-2703.3581112,0.0002254,2]
[311719357,1705355431922,-24900.0,0.0002254,2]
[311719359,1705355431931,-169.9529526,0.00023081,2]
[311719361,1705355431940,-154.9690062,0.00023363,2]
[311719362,1705355431949,-6524.16514166,0.00023364,2]
[311719363,1705355431961,-263.16805972,0.00023364,2]
[311719364,1705355431972,-3212.66679862,0.00023364,2]
[311719365,1705355431981,-166.666666,0.00023406,2]
[311719366,1705355431990,-166.666666,0.00024027,2]
[311719367,1705355432000,-3099.32913741,0.00024181,2]
[311719368,1705355432009,-1560.0644451,0.00024183,2]
[311719369,1705355432019,-225.56582775,0.00024375,2]
[311719370,1705355432028,-166.666666,0.00024648,2]
[311719371,1705355432038,-185.94204988,0.00024681,2]
[311719372,1705355432047,-200.0,0.00024781,7]
[311719373,1705355432056,-2625.43774623,0.00024845,2]
[311719374,1705355432065,-594.38972109,0.00025014,2]
[311719375,1705355432175,-166.666666,0.00025269,2]
[311719376,1705355432185,-166.666666,0.0002589,2]
[311719377,1705355432195,-185.94204986,0.00026019,2]
[311719378,1705355432205,-620.06931357,0.000264,2]
[311719379,1705355432214,-976.44607626,0.00027121,2]
[311719380,1705355432224,-3316.84809972,0.00027164,2]
[311719381,1705355432234,-274.02135393,0.00027164,2]
[311719382,1705355432243,-546.87419273,0.00027164,2]
[311719383,1705355432253,-200.0,0.00027164,2]
[311719384,1705355432262,-155.0697814,0.00027164,2]
[311719385,1705355432271,-752.81434865,0.00027164,2]
[311719397,1705355437909,-1069.93265574,0.00027164,2]
[311719398,1705355437918,-155.01085076,0.00027164,2]
[311719399,1705355437927,-280.0,0.00027259,15]
[311719400,1705355437937,-185.94204986,0.00027358,2]
[311719401,1705355437946,-1500.0,0.000276,2]
[311719402,1705355437955,-198.8577961,0.00027671,2]
[311719403,1705355437964,-198.8577961,0.00027671,2]
[311719404,1705355437972,-198.8577961,0.00027671,2]
[311719405,1705355437981,-198.8577961,0.00027671,2]
[311719407,1705355437990,-198.8577961,0.00027671,2]
[311719408,1705355437998,-620.00346568,0.0002772,2]
[311719409,1705355438008,-305.14498772,0.00028,2]
[311719410,1705355438018,-198.8577961,0.00028078,2]
[311719411,1705355438027,-198.8577961,0.00028078,2]
[311719413,1705355438037,-155.0,0.0002845,2]
[311719414,1705355438050,-198.8577961,0.00028493,2]
[311719415,1705355438059,-1500.0,0.000286,2]
[311719416,1705355438068,-185.94204986,0.00028696,2]
[311719417,1705355438078,-155.06512735,0.00029,2]
[311719418,1705355438087,-2454.18896115,0.00029,2]
[311719419,1705355438096,-620.00017328,0.00029106,2]
[311719420,1705355438105,-153.0,0.00029315,2]
[311719421,1705355438114,-153.0,0.00029315,2]
[311719422,1705355438123,-154.9522141,0.00029315,2]
[311719423,1705355438132,-153.0,0.00029315,2]
[311719424,1705355438142,-153.0,0.00029315,2]
[311719425,1705355438151,-153.0,0.00029315,2]
[311719426,1705355438160,-153.0,0.00029315,2]
[311719427,1705355438169,-153.0,0.00029315,2]
[311719428,1705355438178,-153.0,0.00029315,2]
[311719429,1705355438188,-153.0,0.00029315,2]
[311719430,1705355438201,-153.0,0.00029315,2]
[311719431,1705355438210,-183.5137817,0.00029315,2]
[311719432,1705355438219,-153.0,0.00029315,2]
[311719433,1705355438228,-225.56582775,0.00029375,2]
[311719434,1705355438237,-547.27912584,0.00029448,2]
[311719435,1705355438246,-849.03657826,0.00029448,2]
[311719436,1705355438255,-2873.77131778,0.00029448,2]
[311719437,1705355438265,-239.30442843,0.00029448,2]
[311719438,1705355438274,-155.07907532,0.00029448,2]
[311719439,1705355438284,-722.07368143,0.00029448,2]
[311719440,1705355438292,-4783.37215269,0.0002945,3]
[311719441,1705355438303,-9360.29701503,0.0002945,3]
[311719442,1705355438311,-5000.0,0.0002945,5]
[311719443,1705355438321,-50000.0,0.0002945,4]
[311719444,1705355438330,-97783.56026815,0.0002945,4]
[311719445,1705355438339,-4411.23692627,0.0002945,3]
[311719446,1705355438348,-5000.0,0.0002945,5]
[311719447,1705355438358,-5000.0,0.0002945,5]
[311719448,1705355438367,-5000.0,0.0002945,5]
[311719449,1705355438377,-21021.47753835,0.0002945,3]
[311719450,1705355438387,-5000.0,0.0002945,5]
[311719451,1705355438396,-1662.25694006,0.0002945,3]
[311719452,1705355438406,-2280.0330301,0.00029531,2]
[311719453,1705355438415,-1500.0,0.000296,2]
[311719454,1705355438424,-210.94,0.00029732,2]
[311719455,1705355438434,-210.94,0.00029732,2]
[311719456,1705355438445,-137935.08317447,0.00029733,2]
[311719457,1705355438454,-155.0,0.0002982,2]
[311719458,1705355438463,-159.31507887,0.00029833,2]
[311719459,1705355438472,-23824.33076765,0.00029833,2]
[311719460,1705355438481,-162.0,0.0002997,2]
[311719461,1705355438489,-202.149,0.0002997,2]
[311719462,1705355438499,-391.0,0.00029985,15]
[311719463,1705355438508,-261.19258853,0.0002999,2]
[311719464,1705355438518,-3757.35908,0.0003,2]
[311719465,1705355438527,-235.33407932,0.0003,4]
[311719466,1705355438536,-807.39,0.0003,2]
[311719467,1705355438546,-297.8809135,0.0003,4]
[311719468,1705355438556,-1413.42859915,0.0003,2]
[311719469,1705355438566,-212.0,0.0003,2]
[311719470,1705355438575,-185.94204986,0.00030034,2]
[311719471,1705355438585,-155.05424562,0.00030104,2]
[311719472,1705355438595,-427.49853992,0.00030133,2]
[311719473,1705355438605,-500.0,0.00030133,2]
[311719474,1705355438616,-500.0,0.00030133,2]
[311719475,1705355438626,-500.0,0.00030133,2]
[311719476,1705355438635,-500.0,0.00030133,2]
[311719477,1705355438726,-500.0,0.00030133,2]
[311719478,1705355438736,-500.0,0.00030133,2]
[311719479,1705355438745,-500.0,0.00030133,2]
[311719480,1705355438755,-464.03624165,0.00030133,2]
[311719481,1705355438764,-500.0,0.00030133,2]
[311719482,1705355438773,-500.0,0.00030133,2]
[311719483,1705355438782,-373.66395112,0.00030133,2]
[311719484,1705355438791,-500.0,0.00030133,2]
[311719485,1705355438801,-500.0,0.00030133,2]
[311719486,1705355438810,-500.0,0.00030133,2]
[311719487,1705355438819,-500.0,0.00030133,2]